{"text_format":"1","workbook":"xlsx","n_sheets":12,"sheets":["Summarized Dose Metrics","Dose metrics (exposure 1)","Dose metrics (exposure 2)","Dose metrics (exposure 3)","Dose metrics (exposure 4)","Dose metrics (exposure 5)","MPPD report (exposure 1)","MPPD report (exposure 2)","MPPD report (exposure 3)","MPPD report (exposure 4)","MPPD report (exposure 5)","Dropdown lists"],"not_rendered":{"charts":0,"images":0,"macros":0,"external_links":0,"defined_names":0,"comments":0,"pivot_tables":0},"unopened":[],"bounds":{"document_bytes":16777216,"sheet_cells":100000,"rows_first":2000,"rows_last":500,"rows_between":2000,"halvings":0,"cell_chars":16384,"cell_head_chars":4096},"cells_cut":0,"cells_raw":0,"read":"whole","date_system":"1900"}

{"sheet":"Summarized Dose Metrics","index":0,"n_rows":8,"n_cols":6,"rows_kept":8,"cut":false,"hidden":false,"merged":[[0,0,0,1],[0,3,0,6]]}
["Input parameters",null,null,"Summarized Dose Metrics"]
[]
["Select experimental variable:",null,null,null,"Experiment","Dose"]
["Select  number of exposure conditions:",null,null,null,{"$f":"IF($B$5=\"Yes\",\"control\",INDIRECT(CONCATENATE(\"'Dose metrics (exposure 1)'!\",'Dropdown lists'!$A$16)))","v":{"$error":"#N/A"}},{"$f":"IF($B$5=\"Yes\",0,INDIRECT(CONCATENATE(\"'Dose metrics (exposure 1)'!\",'Dropdown lists'!$A$10)))","v":{"$error":"#N/A"}}]
["Is there an additional control group (no exposure)?",null,null,null,{"$f":"IF($B$5=\"Yes\",INDIRECT(CONCATENATE(\"'Dose metrics (exposure 1)'!\",'Dropdown lists'!$A$16)),INDIRECT(CONCATENATE(\"'Dose metrics (exposure 2)'!\",'Dropdown lists'!$A$16)))","v":{"$error":"#N/A"}},{"$f":"IF($B$5=\"Yes\",INDIRECT(CONCATENATE(\"'Dose metrics (exposure 1)'!\",'Dropdown lists'!$A$10)),INDIRECT(CONCATENATE(\"'Dose metrics (exposure 2)'!\",'Dropdown lists'!$A$10)))","v":{"$error":"#N/A"}}]
["Select dose metrics:",null,null,null,{"$f":"IF($B$5=\"Yes\",IF($B$4>1,INDIRECT(CONCATENATE(\"'Dose metrics (exposure 2)'!\",'Dropdown lists'!$A$16)),\" \"),IF($B$4>2,INDIRECT(CONCATENATE(\"'Dose metrics (exposure 3)'!\",'Dropdown lists'!$A$16)),\" \"))","v":" "},{"$f":"IF($B$5=\"Yes\",IF($B$4>1,INDIRECT(CONCATENATE(\"'Dose metrics (exposure 2)'!\",'Dropdown lists'!$A$10)),\" \"),IF($B$4>2,INDIRECT(CONCATENATE(\"'Dose metrics (exposure 3)'!\",'Dropdown lists'!$A$10)),\" \"))","v":" "}]
[null,null,null,null,{"$f":"IF($B$5=\"Yes\",IF($B$4>2,INDIRECT(CONCATENATE(\"'Dose metrics (exposure 3)'!\",'Dropdown lists'!$A$16)),\" \"),IF($B$4>3,INDIRECT(CONCATENATE(\"'Dose metrics (exposure 4)'!\",'Dropdown lists'!$A$16)),\" \"))","v":" "},{"$f":"IF($B$5=\"Yes\",IF($B$4>2,INDIRECT(CONCATENATE(\"'Dose metrics (exposure 3)'!\",'Dropdown lists'!$A$10)),\" \"),IF($B$4>3,INDIRECT(CONCATENATE(\"'Dose metrics (exposure 4)'!\",'Dropdown lists'!$A$10)),\" \"))","v":" "}]
[null,null,null,null,{"$f":"IF($B$5=\"Yes\",\" \",IF($B$4=5,INDIRECT(CONCATENATE(\"'Dose metrics (exposure 5)'!\",'Dropdown lists'!$A$16)),\" \"))","v":" "},{"$f":"IF($B$5=\"Yes\",\" \",IF($B$4=5,INDIRECT(CONCATENATE(\"'Dose metrics (exposure 5)'!\",'Dropdown lists'!$A$10)),\" \"))","v":" "}]

{"sheet":"Dose metrics (exposure 1)","index":1,"n_rows":29,"n_cols":10,"rows_kept":29,"cut":false,"hidden":false,"merged":[[21,0,21,2],[0,4,0,9],[8,0,8,2],[0,0,0,2],[15,0,15,2]]}
["Population considerations\t\t",null,null,null,"Dose metrics"]
[]
["Lung geometry:",{"$f":"CONCATENATE(VLOOKUP(\"Geometry:\",'MPPD report (exposure 1)'!$B:$F,2,FALSE),\" \",VLOOKUP(\"Geometry:\",'MPPD report (exposure 1)'!$B:$F,3,FALSE),\" \",VLOOKUP(\"Geometry:\",'MPPD report (exposure 1)'!$B:$F,4,FALSE))","v":{"$error":"#N/A"}},null,null,"Region","ET","TB","PUL","TB+PUL","ET+TB+PUL"]
["Model:",{"$f":"VLOOKUP(\"Model:\",'MPPD report (exposure 1)'!$A:$F,2,FALSE)","v":{"$error":"#N/A"}},null,null,"Deposition fraction",{"$f":"VLOOKUP(\"ET\",'MPPD report (exposure 1)'!$B$1:$E$100,4,FALSE)","v":{"$error":"#N/A"}},{"$f":"VLOOKUP(\"TB\",'MPPD report (exposure 1)'!$B$1:$E$100,4,FALSE)","v":{"$error":"#N/A"}},{"$f":"VLOOKUP(\"pulmonary\",'MPPD report (exposure 1)'!$B$1:$E$100,4,FALSE)","v":{"$error":"#N/A"}},{"$f":"G4+H4","v":{"$error":"#N/A"}},{"$f":"SUM(F4:H4)","v":{"$error":"#N/A"}}]
["TLC (ml):",{"$f":"VLOOKUP(\"TLC\",'MPPD report (exposure 1)'!$A:$F,3,FALSE)","v":{"$error":"#N/A"}},null,null,"Deposited mass rate (µg/min)",{"$f":"INDIRECT(CONCATENATE(\"'MPPD report (exposure 1)'!\",ADDRESS(CELL(\"row\",INDEX('MPPD report (exposure 1)'!$A$1:$A$100,MATCH(\"ET\",'MPPD report (exposure 1)'!$B$1:$B$100,0)))+6,5)))","v":{"$error":"#N/A"}},{"$f":"INDIRECT(CONCATENATE(\"'MPPD report (exposure 1)'!\",ADDRESS(CELL(\"row\",INDEX('MPPD report (exposure 1)'!$A$1:$A$100,MATCH(\"ET\",'MPPD report (exposure 1)'!$B$1:$B$100,0)))+7,5)))","v":{"$error":"#N/A"}},{"$f":"INDIRECT(CONCATENATE(\"'MPPD report (exposure 1)'!\",ADDRESS(CELL(\"row\",INDEX('MPPD report (exposure 1)'!$A$1:$A$100,MATCH(\"ET\",'MPPD report (exposure 1)'!$B$1:$B$100,0)))+8,5)))","v":{"$error":"#N/A"}},{"$f":"INDIRECT(CONCATENATE(\"'MPPD report (exposure 1)'!\",ADDRESS(CELL(\"row\",INDEX('MPPD report (exposure 1)'!$A$1:$A$100,MATCH(\"ET\",'MPPD report (exposure 1)'!$B$1:$B$100,0)))+9,5)))","v":{"$error":"#N/A"}},{"$f":"INDIRECT(CONCATENATE(\"'MPPD report (exposure 1)'!\",ADDRESS(CELL(\"row\",INDEX('MPPD report (exposure 1)'!$A$1:$A$100,MATCH(\"ET\",'MPPD report (exposure 1)'!$B$1:$B$100,0)))+10,5)))","v":{"$error":"#N/A"}}]
["FRC (ml):",{"$f":"VLOOKUP(\"FRC\",'MPPD report (exposure 1)'!$A:$F,3,FALSE)","v":{"$error":"#N/A"}},null,null,"Surface area SA (cm2)-normalizing factor",{"$f":"INDIRECT(CONCATENATE(\"'MPPD report (exposure 1)'!\",ADDRESS(CELL(\"row\",INDEX('MPPD report (exposure 1)'!$A$1:$A$100,MATCH(\"Extrathoracic\",'MPPD report (exposure 1)'!$A$1:$A$100,0))),4)))","v":{"$error":"#N/A"}},{"$f":"INDIRECT(CONCATENATE(\"'MPPD report (exposure 1)'!\",ADDRESS(CELL(\"row\",INDEX('MPPD report (exposure 1)'!$A$1:$A$100,MATCH(\"Extrathoracic\",'MPPD report (exposure 1)'!$A$1:$A$100,0)))+1,4)))","v":{"$error":"#N/A"}},{"$f":"INDIRECT(CONCATENATE(\"'MPPD report (exposure 1)'!\",ADDRESS(CELL(\"row\",INDEX('MPPD report (exposure 1)'!$A$1:$A$100,MATCH(\"Extrathoracic\",'MPPD report (exposure 1)'!$A$1:$A$100,0)))+2,4)))","v":{"$error":"#N/A"}},{"$f":"G6+H6","v":{"$error":"#N/A"}},{"$f":"SUM(F6:H6)","v":{"$error":"#N/A"}}]
["Enter body weight (kg)",null,null,null,"Deposited mass rate per regional SA (µg/min/cm2)",{"$f":"F5/F6","v":{"$error":"#N/A"}},{"$f":"G5/G6","v":{"$error":"#N/A"}},{"$error":"#N/A"},{"$error":"#N/A"},{"$error":"#N/A"}]
[null,null,null,null,"Deposited dose (µg)",{"$f":"F5*60*$B$29","v":{"$error":"#N/A"}},{"$f":"G5*60*$B$29","v":{"$error":"#N/A"}},{"$error":"#N/A"},{"$error":"#N/A"},{"$error":"#N/A"}]
["Exposure conditions and activity characteristics",null,null,null,"Deposited dose per SA (µg/cm2)",{"$f":"F8/F6","v":{"$error":"#N/A"}},{"$f":"G8/G6","v":{"$error":"#N/A"}},{"$error":"#N/A"},{"$error":"#N/A"},{"$error":"#N/A"}]
[]
["Aerosol conc. (mg/m3):",{"$f":"VLOOKUP(\"Aerosol\",'MPPD report (exposure 1)'!$A1:$F50,3,FALSE)","v":{"$error":"#N/A"}},null,null,{"$f":"CONCATENATE(\"Software version: \",'MPPD report (exposure 1)'!A1,\" \",'MPPD report (exposure 1)'!B1,\" \",'MPPD report (exposure 1)'!C1,\" \",'MPPD report (exposure 1)'!D1)","v":"Software version:    "},{"$f":"IF(ISBLANK('MPPD report (exposure 1)'!A1),CONCATENATE('MPPD report (exposure 1)'!A2,\" \",'MPPD report (exposure 1)'!B2,\" \",'MPPD report (exposure 1)'!C2,\" \",'MPPD report (exposure 1)'!D2),CONCATENATE('MPPD report (exposure 1)'!A1,\" \",'MPPD report (exposure 1)'!B1,\" \",'MPPD report (exposure 1)'!C1,\" \",'MPPD report (exposure 1)'!D1))","v":"   "}]
["Breathing frequency (/min):",{"$f":"VLOOKUP(\"Frequency:\",'MPPD report (exposure 1)'!$B1:$D50,2,FALSE)","v":{"$error":"#N/A"}}]
["Tidal volume (ml):",{"$f":"VLOOKUP(\"Tidal\",'MPPD report (exposure 1)'!$E2:$G51,3,FALSE)","v":{"$error":"#N/A"}}]
["Breathing scenario:",{"$f":"CONCATENATE(VLOOKUP(\"scenario:\",'MPPD report (exposure 1)'!$B3:$C52,2,FALSE),\" \",VLOOKUP(\"scenario:\",'MPPD report (exposure 1)'!$B3:$D52,3,FALSE))","v":{"$error":"#N/A"}}]
[]
["Particle properties"]
[]
["Mass density (g/cm3):",{"$f":"VLOOKUP(\"density:\",'MPPD report (exposure 1)'!$B7:$C56,2,FALSE)","v":{"$error":"#N/A"}}]
["Diameter (µm):",{"$f":"VLOOKUP(\"Diameter:\",'MPPD report (exposure 1)'!$A8:$B57,2,FALSE)","v":{"$error":"#N/A"}}]
["GSD:",{"$f":"VLOOKUP(\"(GSD):\",'MPPD report (exposure 1)'!$B9:$C58,2,FALSE)","v":{"$error":"#N/A"}}]
[]
["Adjust exposure duration in yellow cells below"]
[]
["Hours/day",1]
["Days/week",1]
["weeks/year",1]
["Years",1]
[]
["Total exposure (hours)",{"$f":"B24*B25*B26*B27","v":1}]

{"sheet":"Dose metrics (exposure 2)","index":2,"n_rows":29,"n_cols":10,"rows_kept":29,"cut":false,"hidden":false,"merged":[[21,0,21,2],[0,0,0,2],[0,4,0,9],[8,0,8,2],[15,0,15,2]]}
["Population considerations\t\t",null,null,null,"Dose metrics"]
[]
["Lung geometry:",{"$f":"CONCATENATE(VLOOKUP(\"Geometry:\",'MPPD report (exposure 2)'!$B:$F,2,FALSE),\" \",VLOOKUP(\"Geometry:\",'MPPD report (exposure 2)'!$B:$F,3,FALSE),\" \",VLOOKUP(\"Geometry:\",'MPPD report (exposure 2)'!$B:$F,4,FALSE))","v":{"$error":"#N/A"}},null,null,"Region","ET","TB","PUL","TB+PUL","ET+TB+PUL"]
["Model:",{"$f":"VLOOKUP(\"Model:\",'MPPD report (exposure 2)'!$A:$F,2,FALSE)","v":{"$error":"#N/A"}},null,null,"Deposition fraction",{"$f":"VLOOKUP(\"ET\",'MPPD report (exposure 2)'!$B$1:$E$100,4,FALSE)","v":{"$error":"#N/A"}},{"$f":"VLOOKUP(\"TB\",'MPPD report (exposure 2)'!$B$1:$E$100,4,FALSE)","v":{"$error":"#N/A"}},{"$f":"VLOOKUP(\"pulmonary\",'MPPD report (exposure 2)'!$B$1:$E$100,4,FALSE)","v":{"$error":"#N/A"}},{"$f":"G4+H4","v":{"$error":"#N/A"}},{"$f":"SUM(F4:H4)","v":{"$error":"#N/A"}}]
["TLC (ml):",{"$f":"VLOOKUP(\"TLC\",'MPPD report (exposure 2)'!$A:$F,3,FALSE)","v":{"$error":"#N/A"}},null,null,"Deposited mass rate (µg/min)",{"$f":"INDIRECT(CONCATENATE(\"'MPPD report (exposure 2)'!\",ADDRESS(CELL(\"row\",INDEX('MPPD report (exposure 2)'!$A$1:$A$100,MATCH(\"ET\",'MPPD report (exposure 2)'!$B$1:$B$100,0)))+6,5)))","v":{"$error":"#N/A"}},{"$f":"INDIRECT(CONCATENATE(\"'MPPD report (exposure 2)'!\",ADDRESS(CELL(\"row\",INDEX('MPPD report (exposure 2)'!$A$1:$A$100,MATCH(\"ET\",'MPPD report (exposure 2)'!$B$1:$B$100,0)))+7,5)))","v":{"$error":"#N/A"}},{"$f":"INDIRECT(CONCATENATE(\"'MPPD report (exposure 2)'!\",ADDRESS(CELL(\"row\",INDEX('MPPD report (exposure 2)'!$A$1:$A$100,MATCH(\"ET\",'MPPD report (exposure 2)'!$B$1:$B$100,0)))+8,5)))","v":{"$error":"#N/A"}},{"$f":"G5+H5","v":{"$error":"#N/A"}},{"$f":"SUM(F5:H5)","v":{"$error":"#N/A"}}]
["FRC (ml):",{"$f":"VLOOKUP(\"FRC\",'MPPD report (exposure 2)'!$A:$F,3,FALSE)","v":{"$error":"#N/A"}},null,null,"Surface area SA (cm2)-normalizing factor",{"$f":"INDIRECT(CONCATENATE(\"'MPPD report (exposure 2)'!\",ADDRESS(CELL(\"row\",INDEX('MPPD report (exposure 2)'!$A$1:$A$100,MATCH(\"Extrathoracic\",'MPPD report (exposure 2)'!$A$1:$A$100,0))),4)))","v":{"$error":"#N/A"}},{"$f":"INDIRECT(CONCATENATE(\"'MPPD report (exposure 2)'!\",ADDRESS(CELL(\"row\",INDEX('MPPD report (exposure 2)'!$A$1:$A$100,MATCH(\"Extrathoracic\",'MPPD report (exposure 2)'!$A$1:$A$100,0)))+1,4)))","v":{"$error":"#N/A"}},{"$f":"INDIRECT(CONCATENATE(\"'MPPD report (exposure 2)'!\",ADDRESS(CELL(\"row\",INDEX('MPPD report (exposure 2)'!$A$1:$A$100,MATCH(\"Extrathoracic\",'MPPD report (exposure 2)'!$A$1:$A$100,0)))+2,4)))","v":{"$error":"#N/A"}},{"$f":"G6+H6","v":{"$error":"#N/A"}},{"$f":"SUM(F6:H6)","v":{"$error":"#N/A"}}]
["Enter body weight (kg)",null,null,null,"Deposited mass rate per regional SA (µg/min/cm2)",{"$f":"F5/F6","v":{"$error":"#N/A"}},{"$f":"G5/G6","v":{"$error":"#N/A"}},{"$error":"#N/A"},{"$error":"#N/A"},{"$error":"#N/A"}]
[null,null,null,null,"Deposited dose (µg)",{"$f":"F5*60*$B$29","v":{"$error":"#N/A"}},{"$f":"G5*60*$B$29","v":{"$error":"#N/A"}},{"$error":"#N/A"},{"$error":"#N/A"},{"$error":"#N/A"}]
["Exposure conditions and activity characteristics",null,null,null,"Deposited dose per SA (µg/cm2)",{"$f":"F8/F6","v":{"$error":"#N/A"}},{"$f":"G8/G6","v":{"$error":"#N/A"}},{"$f":"H8/H6","v":{"$error":"#N/A"}},{"$f":"I8/I6","v":{"$error":"#N/A"}},{"$error":"#N/A"}]
[]
["Aerosol conc. (mg/m3):",{"$f":"VLOOKUP(\"Aerosol\",'MPPD report (exposure 2)'!$A1:$F50,3,FALSE)","v":{"$error":"#N/A"}},null,null,{"$f":"CONCATENATE(\"Software version: \",'MPPD report (exposure 2)'!A1,\" \",'MPPD report (exposure 2)'!B1,\" \",'MPPD report (exposure 2)'!C1,\" \",'MPPD report (exposure 2)'!D1)","v":"Software version:    "},{"$f":"IF(ISBLANK('MPPD report (exposure 2)'!A1),CONCATENATE('MPPD report (exposure 2)'!A2,\" \",'MPPD report (exposure 2)'!B2,\" \",'MPPD report (exposure 2)'!C2,\" \",'MPPD report (exposure 2)'!D2),CONCATENATE('MPPD report (exposure 2)'!A1,\" \",'MPPD report (exposure 2)'!B1,\" \",'MPPD report (exposure 2)'!C1,\" \",'MPPD report (exposure 2)'!D1))","v":"   "}]
["Breathing frequency (/min):",{"$f":"VLOOKUP(\"Frequency:\",'MPPD report (exposure 2)'!$B1:$D50,2,FALSE)","v":{"$error":"#N/A"}}]
["Tidal volume (ml):",{"$f":"VLOOKUP(\"Tidal\",'MPPD report (exposure 2)'!$E2:$G51,3,FALSE)","v":{"$error":"#N/A"}}]
["Breathing scenario:",{"$f":"CONCATENATE(VLOOKUP(\"scenario:\",'MPPD report (exposure 2)'!$B3:$C52,2,FALSE),\" \",VLOOKUP(\"scenario:\",'MPPD report (exposure 2)'!$B3:$D52,3,FALSE))","v":{"$error":"#N/A"}}]
[]
["Particle properties"]
[]
["Mass density (g/cm3):",{"$f":"VLOOKUP(\"density:\",'MPPD report (exposure 2)'!$B7:$C56,2,FALSE)","v":{"$error":"#N/A"}}]
["Diameter (µm):",{"$f":"VLOOKUP(\"Diameter:\",'MPPD report (exposure 2)'!$A8:$B57,2,FALSE)","v":{"$error":"#N/A"}}]
["GSD:",{"$f":"VLOOKUP(\"(GSD):\",'MPPD report (exposure 2)'!$B9:$C58,2,FALSE)","v":{"$error":"#N/A"}}]
[]
["Adjust exposure duration in yellow cells below"]
[]
["Hours/day",1]
["Days/week",1]
["weeks/year",1]
["Years",1]
[]
["Total exposure (hours)",{"$f":"B24*B25*B26*B27","v":1}]

{"sheet":"Dose metrics (exposure 3)","index":3,"n_rows":29,"n_cols":10,"rows_kept":29,"cut":false,"hidden":false,"merged":[[0,0,0,2],[0,4,0,9],[8,0,8,2],[15,0,15,2],[21,0,21,2]]}
["Population considerations\t\t",null,null,null,"Dose metrics"]
[]
["Lung geometry:",{"$f":"CONCATENATE(VLOOKUP(\"Geometry:\",'MPPD report (exposure 3)'!$B:$F,2,FALSE),\" \",VLOOKUP(\"Geometry:\",'MPPD report (exposure 3)'!$B:$F,3,FALSE),\" \",VLOOKUP(\"Geometry:\",'MPPD report (exposure 3)'!$B:$F,4,FALSE))","v":{"$error":"#N/A"}},null,null,"Region","ET","TB","PUL","TB+PUL","ET+TB+PUL"]
["Model:",{"$f":"VLOOKUP(\"Model:\",'MPPD report (exposure 3)'!$A:$F,2,FALSE)","v":{"$error":"#N/A"}},null,null,"Deposition fraction",{"$f":"VLOOKUP(\"ET\",'MPPD report (exposure 3)'!$B$1:$E$100,4,FALSE)","v":{"$error":"#N/A"}},{"$f":"VLOOKUP(\"TB\",'MPPD report (exposure 3)'!$B$1:$E$100,4,FALSE)","v":{"$error":"#N/A"}},{"$f":"VLOOKUP(\"pulmonary\",'MPPD report (exposure 3)'!$B$1:$E$100,4,FALSE)","v":{"$error":"#N/A"}},{"$f":"G4+H4","v":{"$error":"#N/A"}},{"$f":"SUM(F4:H4)","v":{"$error":"#N/A"}}]
["TLC (ml):",{"$f":"VLOOKUP(\"TLC\",'MPPD report (exposure 3)'!$A:$F,3,FALSE)","v":{"$error":"#N/A"}},null,null,"Deposited mass rate (µg/min)",{"$f":"INDIRECT(CONCATENATE(\"'MPPD report (exposure 3)'!\",ADDRESS(CELL(\"row\",INDEX('MPPD report (exposure 3)'!$A$1:$A$100,MATCH(\"ET\",'MPPD report (exposure 3)'!$B$1:$B$100,0)))+6,5)))","v":{"$error":"#N/A"}},{"$f":"INDIRECT(CONCATENATE(\"'MPPD report (exposure 3)'!\",ADDRESS(CELL(\"row\",INDEX('MPPD report (exposure 3)'!$A$1:$A$100,MATCH(\"ET\",'MPPD report (exposure 3)'!$B$1:$B$100,0)))+7,5)))","v":{"$error":"#N/A"}},{"$f":"INDIRECT(CONCATENATE(\"'MPPD report (exposure 3)'!\",ADDRESS(CELL(\"row\",INDEX('MPPD report (exposure 3)'!$A$1:$A$100,MATCH(\"ET\",'MPPD report (exposure 3)'!$B$1:$B$100,0)))+8,5)))","v":{"$error":"#N/A"}},{"$f":"G5+H5","v":{"$error":"#N/A"}},{"$f":"SUM(F5:H5)","v":{"$error":"#N/A"}}]
["FRC (ml):",{"$f":"VLOOKUP(\"FRC\",'MPPD report (exposure 3)'!$A:$F,3,FALSE)","v":{"$error":"#N/A"}},null,null,"Surface area SA (cm2)-normalizing factor",{"$f":"INDIRECT(CONCATENATE(\"'MPPD report (exposure 3)'!\",ADDRESS(CELL(\"row\",INDEX('MPPD report (exposure 3)'!$A$1:$A$100,MATCH(\"Extrathoracic\",'MPPD report (exposure 3)'!$A$1:$A$100,0))),4)))","v":{"$error":"#N/A"}},{"$f":"INDIRECT(CONCATENATE(\"'MPPD report (exposure 3)'!\",ADDRESS(CELL(\"row\",INDEX('MPPD report (exposure 3)'!$A$1:$A$100,MATCH(\"Extrathoracic\",'MPPD report (exposure 3)'!$A$1:$A$100,0)))+1,4)))","v":{"$error":"#N/A"}},{"$f":"INDIRECT(CONCATENATE(\"'MPPD report (exposure 3)'!\",ADDRESS(CELL(\"row\",INDEX('MPPD report (exposure 3)'!$A$1:$A$100,MATCH(\"Extrathoracic\",'MPPD report (exposure 3)'!$A$1:$A$100,0)))+2,4)))","v":{"$error":"#N/A"}},{"$f":"G6+H6","v":{"$error":"#N/A"}},{"$f":"SUM(F6:H6)","v":{"$error":"#N/A"}}]
["Enter body weight (kg)",null,null,null,"Deposited mass rate per regional SA (µg/min/cm2)",{"$f":"F5/F6","v":{"$error":"#N/A"}},{"$f":"G5/G6","v":{"$error":"#N/A"}},{"$error":"#N/A"},{"$error":"#N/A"},{"$error":"#N/A"}]
[null,null,null,null,"Deposited dose (µg)",{"$f":"F5*60*$B$29","v":{"$error":"#N/A"}},{"$f":"G5*60*$B$29","v":{"$error":"#N/A"}},{"$error":"#N/A"},{"$error":"#N/A"},{"$f":"J5*60*$B$29","v":{"$error":"#N/A"}}]
["Exposure conditions and activity characteristics",null,null,null,"Deposited dose per SA (µg/cm2)",{"$f":"F8/F6","v":{"$error":"#N/A"}},{"$f":"G8/G6","v":{"$error":"#N/A"}},{"$f":"H8/H6","v":{"$error":"#N/A"}},{"$f":"I8/I6","v":{"$error":"#N/A"}},{"$error":"#N/A"}]
[]
["Aerosol conc. (mg/m3):",{"$f":"VLOOKUP(\"Aerosol\",'MPPD report (exposure 3)'!$A1:$F50,3,FALSE)","v":{"$error":"#N/A"}},null,null,{"$f":"CONCATENATE(\"Software version: \",'MPPD report (exposure 3)'!A1,\" \",'MPPD report (exposure 3)'!B1,\" \",'MPPD report (exposure 3)'!C1,\" \",'MPPD report (exposure 3)'!D1)","v":"Software version:    "},{"$f":"IF(ISBLANK('MPPD report (exposure 3)'!A1),CONCATENATE('MPPD report (exposure 3)'!A2,\" \",'MPPD report (exposure 3)'!B2,\" \",'MPPD report (exposure 3)'!C2,\" \",'MPPD report (exposure 3)'!D2),CONCATENATE('MPPD report (exposure 3)'!A1,\" \",'MPPD report (exposure 3)'!B1,\" \",'MPPD report (exposure 3)'!C1,\" \",'MPPD report (exposure 3)'!D1))","v":"   "}]
["Breathing frequency (/min):",{"$f":"VLOOKUP(\"Frequency:\",'MPPD report (exposure 3)'!$B1:$D50,2,FALSE)","v":{"$error":"#N/A"}}]
["Tidal volume (ml):",{"$f":"VLOOKUP(\"Tidal\",'MPPD report (exposure 3)'!$E2:$G51,3,FALSE)","v":{"$error":"#N/A"}}]
["Breathing scenario:",{"$f":"CONCATENATE(VLOOKUP(\"scenario:\",'MPPD report (exposure 3)'!$B3:$C52,2,FALSE),\" \",VLOOKUP(\"scenario:\",'MPPD report (exposure 3)'!$B3:$D52,3,FALSE))","v":{"$error":"#N/A"}}]
[]
["Particle properties"]
[]
["Mass density (g/cm3):",{"$f":"VLOOKUP(\"density:\",'MPPD report (exposure 3)'!$B7:$C56,2,FALSE)","v":{"$error":"#N/A"}}]
["Diameter (µm):",{"$f":"VLOOKUP(\"Diameter:\",'MPPD report (exposure 3)'!$A8:$B57,2,FALSE)","v":{"$error":"#N/A"}}]
["GSD:",{"$f":"VLOOKUP(\"(GSD):\",'MPPD report (exposure 3)'!$B9:$C58,2,FALSE)","v":{"$error":"#N/A"}}]
[]
["Adjust exposure duration in yellow cells below"]
[]
["Hours/day",1]
["Days/week",1]
["weeks/year",1]
["Years",1]
[]
["Total exposure (hours)",{"$f":"B24*B25*B26*B27","v":1}]

{"sheet":"Dose metrics (exposure 4)","index":4,"n_rows":29,"n_cols":10,"rows_kept":29,"cut":false,"hidden":false,"merged":[[0,0,0,2],[0,4,0,9],[8,0,8,2],[15,0,15,2],[21,0,21,2]]}
["Population considerations\t\t",null,null,null,"Dose metrics"]
[]
["Lung geometry:",{"$f":"CONCATENATE(VLOOKUP(\"Geometry:\",'MPPD report (exposure 4)'!$B:$F,2,FALSE),\" \",VLOOKUP(\"Geometry:\",'MPPD report (exposure 4)'!$B:$F,3,FALSE),\" \",VLOOKUP(\"Geometry:\",'MPPD report (exposure 4)'!$B:$F,4,FALSE))","v":{"$error":"#N/A"}},null,null,"Region","ET","TB","PUL","TB+PUL","ET+TB+PUL"]
["Model:",{"$f":"VLOOKUP(\"Model:\",'MPPD report (exposure 4)'!$A:$F,2,FALSE)","v":{"$error":"#N/A"}},null,null,"Deposition fraction",{"$f":"VLOOKUP(\"ET\",'MPPD report (exposure 4)'!$B$1:$E$100,4,FALSE)","v":{"$error":"#N/A"}},{"$f":"VLOOKUP(\"TB\",'MPPD report (exposure 4)'!$B$1:$E$100,4,FALSE)","v":{"$error":"#N/A"}},{"$f":"VLOOKUP(\"pulmonary\",'MPPD report (exposure 4)'!$B$1:$E$100,4,FALSE)","v":{"$error":"#N/A"}},{"$f":"G4+H4","v":{"$error":"#N/A"}},{"$f":"SUM(F4:H4)","v":{"$error":"#N/A"}}]
["TLC (ml):",{"$f":"VLOOKUP(\"TLC\",'MPPD report (exposure 4)'!$A:$F,3,FALSE)","v":{"$error":"#N/A"}},null,null,"Deposited mass rate (µg/min)",{"$f":"INDIRECT(CONCATENATE(\"'MPPD report (exposure 4)'!\",ADDRESS(CELL(\"row\",INDEX('MPPD report (exposure 4)'!$A$1:$A$100,MATCH(\"ET\",'MPPD report (exposure 4)'!$B$1:$B$100,0)))+6,5)))","v":{"$error":"#N/A"}},{"$f":"INDIRECT(CONCATENATE(\"'MPPD report (exposure 4)'!\",ADDRESS(CELL(\"row\",INDEX('MPPD report (exposure 4)'!$A$1:$A$100,MATCH(\"ET\",'MPPD report (exposure 4)'!$B$1:$B$100,0)))+7,5)))","v":{"$error":"#N/A"}},{"$f":"INDIRECT(CONCATENATE(\"'MPPD report (exposure 4)'!\",ADDRESS(CELL(\"row\",INDEX('MPPD report (exposure 4)'!$A$1:$A$100,MATCH(\"ET\",'MPPD report (exposure 4)'!$B$1:$B$100,0)))+8,5)))","v":{"$error":"#N/A"}},{"$f":"G5+H5","v":{"$error":"#N/A"}},{"$f":"SUM(F5:H5)","v":{"$error":"#N/A"}}]
["FRC (ml):",{"$f":"VLOOKUP(\"FRC\",'MPPD report (exposure 4)'!$A:$F,3,FALSE)","v":{"$error":"#N/A"}},null,null,"Surface area SA (cm2)-normalizing factor",{"$f":"INDIRECT(CONCATENATE(\"'MPPD report (exposure 4)'!\",ADDRESS(CELL(\"row\",INDEX('MPPD report (exposure 4)'!$A$1:$A$100,MATCH(\"Extrathoracic\",'MPPD report (exposure 4)'!$A$1:$A$100,0))),4)))","v":{"$error":"#N/A"}},{"$f":"INDIRECT(CONCATENATE(\"'MPPD report (exposure 4)'!\",ADDRESS(CELL(\"row\",INDEX('MPPD report (exposure 4)'!$A$1:$A$100,MATCH(\"Extrathoracic\",'MPPD report (exposure 4)'!$A$1:$A$100,0)))+1,4)))","v":{"$error":"#N/A"}},{"$f":"INDIRECT(CONCATENATE(\"'MPPD report (exposure 4)'!\",ADDRESS(CELL(\"row\",INDEX('MPPD report (exposure 4)'!$A$1:$A$100,MATCH(\"Extrathoracic\",'MPPD report (exposure 4)'!$A$1:$A$100,0)))+2,4)))","v":{"$error":"#N/A"}},{"$f":"G6+H6","v":{"$error":"#N/A"}},{"$f":"SUM(F6:H6)","v":{"$error":"#N/A"}}]
["Enter body weight (kg)",null,null,null,"Deposited mass rate per regional SA (µg/min/cm2)",{"$f":"F5/F6","v":{"$error":"#N/A"}},{"$f":"G5/G6","v":{"$error":"#N/A"}},{"$error":"#N/A"},{"$error":"#N/A"},{"$error":"#N/A"}]
[null,null,null,null,"Deposited dose (µg)",{"$f":"F5*60*$B$29","v":{"$error":"#N/A"}},{"$f":"G5*60*$B$29","v":{"$error":"#N/A"}},{"$error":"#N/A"},{"$error":"#N/A"},{"$error":"#N/A"}]
["Exposure conditions and activity characteristics",null,null,null,"Deposited dose per SA (µg/cm2)",{"$f":"F8/F6","v":{"$error":"#N/A"}},{"$f":"G8/G6","v":{"$error":"#N/A"}},{"$f":"H8/H6","v":{"$error":"#N/A"}},{"$f":"I8/I6","v":{"$error":"#N/A"}},{"$error":"#N/A"}]
[]
["Aerosol conc. (mg/m3):",{"$f":"VLOOKUP(\"Aerosol\",'MPPD report (exposure 4)'!$A1:$F50,3,FALSE)","v":{"$error":"#N/A"}},null,null,{"$f":"CONCATENATE(\"Software version: \",'MPPD report (exposure 4)'!A1,\" \",'MPPD report (exposure 4)'!B1,\" \",'MPPD report (exposure 4)'!C1,\" \",'MPPD report (exposure 4)'!D1)","v":"Software version:    "},{"$f":"IF(ISBLANK('MPPD report (exposure 4)'!A1),CONCATENATE('MPPD report (exposure 4)'!A2,\" \",'MPPD report (exposure 4)'!B2,\" \",'MPPD report (exposure 4)'!C2,\" \",'MPPD report (exposure 4)'!D2),CONCATENATE('MPPD report (exposure 4)'!A1,\" \",'MPPD report (exposure 4)'!B1,\" \",'MPPD report (exposure 4)'!C1,\" \",'MPPD report (exposure 4)'!D1))","v":"   "}]
["Breathing frequency (/min):",{"$f":"VLOOKUP(\"Frequency:\",'MPPD report (exposure 4)'!$B1:$D50,2,FALSE)","v":{"$error":"#N/A"}}]
["Tidal volume (ml):",{"$f":"VLOOKUP(\"Tidal\",'MPPD report (exposure 4)'!$E2:$G51,3,FALSE)","v":{"$error":"#N/A"}}]
["Breathing scenario:",{"$f":"CONCATENATE(VLOOKUP(\"scenario:\",'MPPD report (exposure 4)'!$B3:$C52,2,FALSE),\" \",VLOOKUP(\"scenario:\",'MPPD report (exposure 4)'!$B3:$D52,3,FALSE))","v":{"$error":"#N/A"}}]
[]
["Particle properties"]
[]
["Mass density (g/cm3):",{"$f":"VLOOKUP(\"density:\",'MPPD report (exposure 4)'!$B7:$C56,2,FALSE)","v":{"$error":"#N/A"}}]
["Diameter (µm):",{"$f":"VLOOKUP(\"Diameter:\",'MPPD report (exposure 4)'!$A8:$B57,2,FALSE)","v":{"$error":"#N/A"}}]
["GSD:",{"$f":"VLOOKUP(\"(GSD):\",'MPPD report (exposure 4)'!$B9:$C58,2,FALSE)","v":{"$error":"#N/A"}}]
[]
["Adjust exposure duration in yellow cells below"]
[]
["Hours/day",1]
["Days/week",1]
["weeks/year",1]
["Years",1]
[]
["Total exposure (hours)",{"$f":"B24*B25*B26*B27","v":1}]

{"sheet":"Dose metrics (exposure 5)","index":5,"n_rows":29,"n_cols":10,"rows_kept":29,"cut":false,"hidden":false,"merged":[[0,0,0,2],[0,4,0,9],[8,0,8,2],[15,0,15,2],[21,0,21,2]]}
["Exposure conditions and activity characteristics\t\t",null,null,null,"Dose metrics"]
[]
["Lung geometry:",{"$f":"CONCATENATE(VLOOKUP(\"Geometry:\",'MPPD report (exposure 5)'!$B:$F,2,FALSE),\" \",VLOOKUP(\"Geometry:\",'MPPD report (exposure 5)'!$B:$F,3,FALSE),\" \",VLOOKUP(\"Geometry:\",'MPPD report (exposure 5)'!$B:$F,4,FALSE))","v":{"$error":"#N/A"}},null,null,"Region","ET","TB","PUL","TB+PUL","ET+TB+PUL"]
["Model:",{"$f":"VLOOKUP(\"Model:\",'MPPD report (exposure 5)'!$A:$F,2,FALSE)","v":{"$error":"#N/A"}},null,null,"Deposition fraction",{"$f":"VLOOKUP(\"ET\",'MPPD report (exposure 5)'!$B$1:$E$100,4,FALSE)","v":{"$error":"#N/A"}},{"$f":"VLOOKUP(\"TB\",'MPPD report (exposure 5)'!$B$1:$E$100,4,FALSE)","v":{"$error":"#N/A"}},{"$f":"VLOOKUP(\"pulmonary\",'MPPD report (exposure 5)'!$B$1:$E$100,4,FALSE)","v":{"$error":"#N/A"}},{"$f":"G4+H4","v":{"$error":"#N/A"}},{"$f":"SUM(F4:H4)","v":{"$error":"#N/A"}}]
["TLC (ml):",{"$f":"VLOOKUP(\"TLC\",'MPPD report (exposure 5)'!$A:$F,3,FALSE)","v":{"$error":"#N/A"}},null,null,"Deposited mass rate (µg/min)",{"$f":"INDIRECT(CONCATENATE(\"'MPPD report (exposure 5)'!\",ADDRESS(CELL(\"row\",INDEX('MPPD report (exposure 5)'!$A$1:$A$100,MATCH(\"ET\",'MPPD report (exposure 5)'!$B$1:$B$100,0)))+6,5)))","v":{"$error":"#N/A"}},{"$f":"INDIRECT(CONCATENATE(\"'MPPD report (exposure 5)'!\",ADDRESS(CELL(\"row\",INDEX('MPPD report (exposure 5)'!$A$1:$A$100,MATCH(\"ET\",'MPPD report (exposure 5)'!$B$1:$B$100,0)))+7,5)))","v":{"$error":"#N/A"}},{"$f":"INDIRECT(CONCATENATE(\"'MPPD report (exposure 5)'!\",ADDRESS(CELL(\"row\",INDEX('MPPD report (exposure 5)'!$A$1:$A$100,MATCH(\"ET\",'MPPD report (exposure 5)'!$B$1:$B$100,0)))+8,5)))","v":{"$error":"#N/A"}},{"$f":"G5+H5","v":{"$error":"#N/A"}},{"$f":"SUM(F5:H5)","v":{"$error":"#N/A"}}]
["FRC (ml):",{"$f":"VLOOKUP(\"FRC\",'MPPD report (exposure 5)'!$A:$F,3,FALSE)","v":{"$error":"#N/A"}},null,null,"Surface area SA (cm2)-normalizing factor",{"$f":"INDIRECT(CONCATENATE(\"'MPPD report (exposure 5)'!\",ADDRESS(CELL(\"row\",INDEX('MPPD report (exposure 5)'!$A$1:$A$100,MATCH(\"Extrathoracic\",'MPPD report (exposure 5)'!$A$1:$A$100,0))),4)))","v":{"$error":"#N/A"}},{"$f":"INDIRECT(CONCATENATE(\"'MPPD report (exposure 5)'!\",ADDRESS(CELL(\"row\",INDEX('MPPD report (exposure 5)'!$A$1:$A$100,MATCH(\"Extrathoracic\",'MPPD report (exposure 5)'!$A$1:$A$100,0)))+1,4)))","v":{"$error":"#N/A"}},{"$f":"INDIRECT(CONCATENATE(\"'MPPD report (exposure 5)'!\",ADDRESS(CELL(\"row\",INDEX('MPPD report (exposure 5)'!$A$1:$A$100,MATCH(\"Extrathoracic\",'MPPD report (exposure 5)'!$A$1:$A$100,0)))+2,4)))","v":{"$error":"#N/A"}},{"$f":"G6+H6","v":{"$error":"#N/A"}},{"$f":"SUM(F6:H6)","v":{"$error":"#N/A"}}]
["Enter body weight (kg)",null,null,null,"Deposited mass rate per regional SA (µg/min/cm2)",{"$f":"F5/F6","v":{"$error":"#N/A"}},{"$f":"G5/G6","v":{"$error":"#N/A"}},{"$error":"#N/A"},{"$error":"#N/A"},{"$error":"#N/A"}]
[null,null,null,null,"Deposited dose (µg)",{"$f":"F5*60*$B$29","v":{"$error":"#N/A"}},{"$f":"G5*60*$B$29","v":{"$error":"#N/A"}},{"$error":"#N/A"},{"$error":"#N/A"},{"$error":"#N/A"}]
["Exposure parameters",null,null,null,"Deposited dose per SA (µg/cm2)",{"$f":"F8/F6","v":{"$error":"#N/A"}},{"$f":"G8/G6","v":{"$error":"#N/A"}},{"$f":"H8/H6","v":{"$error":"#N/A"}},{"$f":"I8/I6","v":{"$error":"#N/A"}},{"$error":"#N/A"}]
[]
["Aerosol conc. (mg/m3):",{"$f":"VLOOKUP(\"Aerosol\",'MPPD report (exposure 5)'!$A1:$F50,3,FALSE)","v":{"$error":"#N/A"}},null,null,{"$f":"CONCATENATE(\"Software version: \",'MPPD report (exposure 5)'!A1,\" \",'MPPD report (exposure 5)'!B1,\" \",'MPPD report (exposure 5)'!C1,\" \",'MPPD report (exposure 5)'!D1)","v":"Software version:    "},{"$f":"IF(ISBLANK('MPPD report (exposure 5)'!A1),CONCATENATE('MPPD report (exposure 5)'!A2,\" \",'MPPD report (exposure 5)'!B2,\" \",'MPPD report (exposure 5)'!C2,\" \",'MPPD report (exposure 5)'!D2),CONCATENATE('MPPD report (exposure 5)'!A1,\" \",'MPPD report (exposure 5)'!B1,\" \",'MPPD report (exposure 5)'!C1,\" \",'MPPD report (exposure 5)'!D1))","v":"   "}]
["Breathing frequency (/min):",{"$f":"VLOOKUP(\"Frequency:\",'MPPD report (exposure 5)'!$B1:$D50,2,FALSE)","v":{"$error":"#N/A"}}]
["Tidal volume (ml):",{"$f":"VLOOKUP(\"Tidal\",'MPPD report (exposure 5)'!$E2:$G51,3,FALSE)","v":{"$error":"#N/A"}}]
["Breathing scenario:",{"$f":"CONCATENATE(VLOOKUP(\"scenario:\",'MPPD report (exposure 5)'!$B3:$C52,2,FALSE),\" \",VLOOKUP(\"scenario:\",'MPPD report (exposure 5)'!$B3:$D52,3,FALSE))","v":{"$error":"#N/A"}}]
[]
["Particle properties"]
[]
["Mass density (g/cm3):",{"$f":"VLOOKUP(\"density:\",'MPPD report (exposure 5)'!$B7:$C56,2,FALSE)","v":{"$error":"#N/A"}}]
["Diameter (µm):",{"$f":"VLOOKUP(\"Diameter:\",'MPPD report (exposure 5)'!$A8:$B57,2,FALSE)","v":{"$error":"#N/A"}}]
["GSD:",{"$f":"VLOOKUP(\"(GSD):\",'MPPD report (exposure 5)'!$B9:$C58,2,FALSE)","v":{"$error":"#N/A"}}]
[]
["Adjust exposure duration in yellow cells below"]
[]
["Hours/day",1]
["Days/week",1]
["weeks/year",1]
["Years",1]
[]
["Total exposure (hours)",{"$f":"B24*B25*B26*B27","v":1}]

{"sheet":"MPPD report (exposure 1)","index":6,"n_rows":0,"n_cols":0,"rows_kept":0,"cut":false,"hidden":false,"merged":[]}

{"sheet":"MPPD report (exposure 2)","index":7,"n_rows":0,"n_cols":0,"rows_kept":0,"cut":false,"hidden":false,"merged":[]}

{"sheet":"MPPD report (exposure 3)","index":8,"n_rows":0,"n_cols":0,"rows_kept":0,"cut":false,"hidden":false,"merged":[]}

{"sheet":"MPPD report (exposure 4)","index":9,"n_rows":0,"n_cols":0,"rows_kept":0,"cut":false,"hidden":false,"merged":[]}

{"sheet":"MPPD report (exposure 5)","index":10,"n_rows":0,"n_cols":0,"rows_kept":0,"cut":false,"hidden":false,"merged":[]}

{"sheet":"Dropdown lists","index":11,"n_rows":16,"n_cols":7,"rows_kept":16,"cut":false,"hidden":false,"merged":[]}
["Experimental variable",null,"Number of exposure conditions","Dose metrics",null,"Control group?"]
[]
["Aerosol concentration (mg/m3)","B11",1,"ET deposited dose (µg)","F8","Yes",1]
["Particle size (µm)","B19",2,"TB deposited dose (µg)","G8","No",0]
["Exposure duration (hr)","B29",3,"PU deposited dose (µg)","H8"]
[null,null,4,"TB+PU deposited dose (µg)","I8"]
[null,null,5,"ET+TB+PU deposited dose (µg)","J8"]
[null,null,null,"ET deposited dose/SA (µg/cm2)","F9"]
["Selected dose metrics",null,null,"TB deposited dose/SA (µg/cm2)","G9"]
[{"$f":"VLOOKUP('Summarized Dose Metrics'!B6,D1:E23,2,FALSE)","v":{"$error":"#N/A"}},null,null,"PU deposited dose/SA (µg/cm2)","H9"]
[null,null,null,"TB+PU deposited dose/SA (µg/cm2)","I9"]
["Control group",null,null,"ET+TB+PU deposited dose/SA (µg/cm2)","J9"]
[{"$f":"VLOOKUP('Summarized Dose Metrics'!B6,F1:G23,2,FALSE)","v":{"$error":"#N/A"}}]
[]
["Selected experimental variable"]
[{"$f":"VLOOKUP('Summarized Dose Metrics'!B3,A1:B6,2,FALSE)","v":{"$error":"#N/A"}}]